fUSD/lending_fUSD_20260611
["ID","MTS","AMOUNT","RATE_DAILY","PERIOD"]
[424785136,1781160655000,-2000.0,0.00027367,2]
[424785132,1781160655000,-644.79446245,0.00027296,2]
[424785135,1781160655000,-301.14337869,0.00027299,2]
[424785134,1781160655000,-804.17102365,0.00027296,2]
[424785087,1781160655000,-2991.49051684,0.00024559,2]
[424785126,1781160655000,-2523.097896,0.00026384,2]
[424785114,1781160655000,-550.0,0.00026,2]
[424785128,1781160655000,-290.3986294,0.00026751,2]
[424785111,1781160655000,-605.42,0.000256,7]
[424785113,1781160655000,-164.0,0.00025954,2]
[424785085,1781160655000,-162.68502549,0.00024559,2]
[424785086,1781160655000,-251.11897888,0.00024559,2]
[424785092,1781160655000,-170.45,0.00024658,2]
[424785091,1781160655000,-1000.0,0.00024658,2]
[424785093,1781160655000,-151.0,0.00024658,2]
[424785095,1781160655000,-150.0,0.00024658,2]
[424785094,1781160655000,-151.0,0.00024658,2]
[424785097,1781160655000,-691.0,0.00024889,8]
[424785099,1781160655000,-629.23663728,0.00025,5]
[424785096,1781160655000,-169.05,0.00024742,7]
[424785098,1781160655000,-163.37198742,0.00025,15]
[424785100,1781160655000,-37985.32894375,0.00025,2]
[424785101,1781160655000,-3556.0,0.00025033,2]
[424785108,1781160655000,-212.2820768,0.00025107,2]
[424785109,1781160655000,-260.4103811,0.00025107,2]
[424785110,1781160655000,-691.0,0.00025515,9]
[424785105,1781160655000,-1227.0,0.00025033,2]
[424785103,1781160655000,-382.0,0.00025033,2]
[424785106,1781160655000,-933.0,0.00025033,2]
[424785107,1781160655000,-3643.0,0.00025033,2]
[424785104,1781160655000,-1274.0,0.00025033,2]
[424785102,1781160655000,-1358.0,0.00025033,2]
[424785151,1781160656000,-1186.534225,0.00027397,2]
[424785167,1781160656000,-151.0,0.00027397,2]
[424785168,1781160656000,-151.0,0.00027397,2]
[424785162,1781160656000,-1750.680344,0.00027397,2]
[424785157,1781160656000,-151.0,0.00027397,2]
[424785161,1781160656000,-1750.680344,0.00027397,2]
[424785160,1781160656000,-1750.680344,0.00027397,2]
[424785156,1781160656000,-151.0,0.00027397,2]
[424785165,1781160656000,-1750.680344,0.00027397,2]
[424785159,1781160656000,-1750.680344,0.00027397,2]
[424785164,1781160656000,-1750.680344,0.00027397,2]
[424785150,1781160656000,-1186.534225,0.00027397,2]
[424785163,1781160656000,-1750.680344,0.00027397,2]
[424785158,1781160656000,-199.727395,0.00027397,2]
[424785155,1781160656000,-151.0,0.00027397,2]
[424785141,1781160656000,-200.0,0.00027397,120]
[424785149,1781160656000,-1186.534225,0.00027397,2]
[424785169,1781160656000,-154.965483,0.00027397,2]
[424785139,1781160656000,-383.5013725,0.00027397,2]
[424785137,1781160656000,-2000.0,0.00027367,2]
[424785140,1781160656000,-1500.0,0.00027397,2]
[424785138,1781160656000,-691.0,0.00027394,10]
[424785142,1781160656000,-300.0,0.00027397,2]
[424785152,1781160656000,-1471.69,0.00027397,2]
[424785143,1781160656000,-1023.38,0.00027397,2]
[424785146,1781160656000,-1186.534225,0.00027397,2]
[424785148,1781160656000,-1186.534225,0.00027397,2]
[424785153,1781160656000,-151.0,0.00027397,2]
[424785145,1781160656000,-1186.534225,0.00027397,2]
[424785147,1781160656000,-1186.534225,0.00027397,2]
[424785154,1781160656000,-151.0,0.00027397,2]
[424785144,1781160656000,-1186.534225,0.00027397,2]
[424785172,1781160656000,-310.58,0.000274,30]
[424785166,1781160656000,-1750.680344,0.00027397,2]
[424785180,1781160656000,-158.79976439,0.00027435,7]
[424785192,1781160656000,-182.01385824,0.00027464,7]
[424785195,1781160656000,-219.95084448,0.00027464,7]
[424785197,1781160656000,-166.19943202,0.00027464,7]
[424785194,1781160656000,-215.23151101,0.00027464,7]
[424785193,1781160656000,-153.4794304,0.00027464,7]
[424785199,1781160656000,-163.66861386,0.00027483,7]
[424785186,1781160656000,-150.09372763,0.00027435,7]
[424785200,1781160656000,-169.05,0.00027484,7]
[424785201,1781160656000,-605.42,0.000275,7]
[424785202,1781160656000,-923.0,0.000275,7]
[424785198,1781160656000,-164.19380412,0.00027483,7]
[424785204,1781160656000,-180.12317606,0.00027504,7]
[424785205,1781160656000,-3088.38222518,0.00027534,2]
[424785177,1781160656000,-2086.31,0.000274,2]
[424785196,1781160656000,-166.35611619,0.00027464,7]
[424785190,1781160656000,-158.57663746,0.00027462,7]
[424785189,1781160656000,-167.9362478,0.00027462,7]
[424785191,1781160656000,-152.07009006,0.00027464,7]
[424785170,1781160656000,-150.0,0.00027397,2]
[424785179,1781160656000,-207.05299745,0.00027435,7]
[424785173,1781160656000,-2086.31,0.000274,2]
[424785176,1781160656000,-2086.31,0.000274,2]
[424785203,1781160656000,-500.0,0.000275,7]
[424785188,1781160656000,-157.9336468,0.00027435,7]
[424785171,1781160656000,-167.68,0.000274,7]
[424785174,1781160656000,-2086.31,0.000274,2]
[424785175,1781160656000,-2086.31,0.000274,2]
[424785182,1781160656000,-167.63442991,0.00027435,5]
[424785181,1781160656000,-161.26625364,0.00027435,7]
[424785183,1781160656000,-270.44864947,0.00027435,7]
[424785184,1781160656000,-267.97202833,0.00027435,7]
[424785185,1781160656000,-170.93744987,0.00027435,7]
[424785187,1781160656000,-156.27378614,0.00027435,2]
[424785178,1781160656000,-225.78457351,0.00027435,7]
[424785215,1781160657000,-2816.25291292,0.00027397,10]
[424785206,1781160657000,-511.68000002,8.714e-05,2]
[424785209,1781160657000,-6076.0,0.00019033,2]
[424785210,1781160657000,-150.0,0.00021918,2]
[424785208,1781160657000,-217.564896,0.00011873,2]
[424785212,1781160657000,-150.0,0.00024164,2]
[424785207,1781160657000,-2989.12999998,8.714e-05,2]
[424785217,1781160657000,-872.29078,0.00027397,10]
[424785214,1781160657000,-8277.90698707,0.00027397,10]
[424785213,1781160657000,-2466.26628792,0.00027397,10]
[424785211,1781160657000,-150.0,0.00023014,2]
[424785218,1781160657000,-1297.33197894,0.00027397,10]
[424785219,1781160657000,-693.12083928,0.00027397,10]
[424785220,1781160657000,-1592.53782274,0.00027397,10]
[424785216,1781160657000,-615.01889641,0.00027397,10]
[424785222,1781161061000,155.33223046,8.803e-05,7]
[424785224,1781161420000,255.9291826,9.931e-05,7]
[424785225,1781161421000,216.29147715,9.647e-05,7]
[424785226,1781161602000,170.61945506,9.458e-05,7]
[424785227,1781161619000,-467.19539929,8.757e-05,2]
[424785241,1781161832000,-250.0,9.159e-05,2]
[424785243,1781161832000,-467.31490175,9.258e-05,2]
[424785242,1781161832000,-4000.0,9.258e-05,2]
[424785239,1781161832000,-1128.12,9.059e-05,2]
[424785240,1781161832000,-300.0,9.159e-05,2]
[424785238,1781161832000,-1847.289926,9.013e-05,2]
[424785231,1781161832000,-216.5600592,8.458e-05,2]
[424785236,1781161832000,-275.63564858,8.885e-05,2]
[424785234,1781161832000,-466.11,8.717e-05,2]
[424785235,1781161832000,-1532.80460071,8.757e-05,2]
[424785233,1781161832000,-1768.67,8.677e-05,2]
[424785244,1781161832000,-31503.57,9.258e-05,2]
[424785232,1781161832000,-1536.33,8.638e-05,2]
[424785230,1781161832000,-970.44892758,8.458e-05,2]
[424785237,1781161832000,-150.0,8.885e-05,2]
[424785247,1781161832000,-9999.99,9.258e-05,2]
[424785246,1781161832000,-24223.16388531,9.258e-05,2]
[424785248,1781161832000,-1198.78,9.258e-05,2]
[424785270,1781161832000,-914.31806116,9.358e-05,2]
[424785269,1781161832000,-775.59928893,9.358e-05,2]
[424785268,1781161832000,-348.66418483,9.358e-05,2]
[424785245,1781161832000,-776.82611469,9.258e-05,2]
[424785263,1781161832000,-150.99,9.358e-05,2]
[424785266,1781161832000,-973.26617928,9.358e-05,2]
[424785262,1781161832000,-3440.66,9.358e-05,2]
[424785267,1781161832000,-500.0,9.358e-05,2]
[424785257,1781161832000,-1329.18994873,9.358e-05,2]
[424785253,1781161832000,-1254.41808677,9.358e-05,2]
[424785255,1781161832000,-948.44335853,9.358e-05,2]
[424785252,1781161832000,-7440.0785547,9.358e-05,2]
[424785249,1781161832000,-299.99,9.258e-05,2]
[424785250,1781161832000,-403.8933,9.358e-05,2]
[424785260,1781161832000,-163.15005127,9.358e-05,2]
[424785280,1781161838000,-835.54999998,9.358e-05,2]
[424785282,1781161838000,-4169.41,9.358e-05,2]
[424785281,1781161838000,-652.59228582,9.358e-05,2]
[424785284,1781161838000,-384.05131987,9.401e-05,2]
[424785287,1781161838000,-296.06550867,9.458e-05,2]
[424785286,1781161838000,-2397.64,9.401e-05,2]
[424785285,1781161838000,-999.99,9.401e-05,2]
[424785291,1781161838000,-176.47627677,9.503e-05,2]
[424785288,1781161838000,-4224.682,9.458e-05,2]
[424785290,1781161838000,-433.0,9.497e-05,2]
[424785289,1781161838000,-205.353,9.458e-05,2]
[424785292,1781161838000,-500.0,9.55e-05,2]
[424785293,1781161838000,-150.0,9.55e-05,2]
[424785294,1781161838000,-309.4253,9.551e-05,2]
[424785283,1781161838000,-4000.0,9.401e-05,2]
[424785332,1781161839000,-332.485161,0.0001,2]
[424785335,1781161839000,-171.48663566,0.0001,2]
[424785330,1781161839000,-454.3179335,0.0001,2]
[424785329,1781161839000,-250.0,9.965e-05,2]
[424785322,1781161839000,-2000.0,9.852e-05,2]
[424785327,1781161839000,-500.0,9.965e-05,2]
[424785331,1781161839000,-34800.0,0.0001,3]
[424785336,1781161839000,-543.19390237,0.0001,2]
[424785323,1781161839000,-702.99,9.874e-05,2]
[424785328,1781161839000,-300.0,9.965e-05,2]
[424785333,1781161839000,-2968.95470527,0.0001,2]
[424785339,1781161839000,-1152.88467341,0.00010099,3]
[424785338,1781161839000,-4702.0,0.00010055,2]
[424785324,1781161839000,-26100.0,9.9e-05,3]
[424785342,1781161839000,-172.5,0.000101,2]
[424785340,1781161839000,-1152.88467341,0.00010099,3]
[424785337,1781161839000,-188.45660723,0.0001005,2]
[424785343,1781161839000,-172.5,0.000101,2]
[424785341,1781161839000,-1574168.70632842,0.000101,2]
[424785345,1781161839000,-998.47,0.00010184,2]
[424785344,1781161839000,-172.5,0.000101,2]
[424785346,1781161839000,-500.0,0.00010198,2]
[424785347,1781161839000,-1531.77123695,0.00010213,2]
[424785334,1781161839000,-1472.57104462,0.0001,2]
[424785321,1781161839000,-296.97932903,9.815e-05,2]
[424785316,1781161839000,-153.42585405,9.65e-05,2]
[424785318,1781161839000,-8700.0,9.7e-05,3]
[424785295,1781161839000,-2000.0,9.551e-05,2]
[424785296,1781161839000,-1712.53325092,9.551e-05,2]
[424785297,1781161839000,-59367.5107,9.551e-05,2]
[424785298,1781161839000,-6820.62317621,9.551e-05,2]
[424785299,1781161839000,-6821.7941,9.551e-05,2]
[424785301,1781161839000,-2500.0,9.551e-05,2]
[424785302,1781161839000,-1500000.0,9.551e-05,2]
[424785300,1781161839000,-8579.2581,9.551e-05,2]
[424785303,1781161839000,-189.11594884,9.551e-05,2]
[424785304,1781161839000,-215.95576085,9.587e-05,2]
[424785306,1781161839000,-500.0,9.589e-05,2]
[424785308,1781161839000,-176.47627677,9.603e-05,2]
[424785307,1781161839000,-598.47,9.597e-05,2]
[424785309,1781161839000,-728.96288957,9.65e-05,2]
[424785305,1781161839000,-250.0,9.589e-05,2]
[424785310,1781161839000,-1000.0,9.65e-05,2]
[424785312,1781161839000,-1196.25414631,9.65e-05,3]
[424785313,1781161839000,-1152.88467341,9.65e-05,3]
[424785311,1781161839000,-500.0,9.65e-05,2]
[424785314,1781161839000,-1189.72430801,9.65e-05,3]
[424785315,1781161839000,-199.48738674,9.65e-05,3]
[424785317,1781161839000,-171.7,9.664e-05,2]
[424785320,1781161839000,-17400.0,9.8e-05,3]
[424785319,1781161839000,-176.47627677,9.751e-05,2]
[424785350,1781161839000,-1531.77123695,0.0001043,2]
[424785326,1781161839000,-4000.0,9.965e-05,2]
[424785351,1781161839000,-500.0,0.00010472,2]
[424785325,1781161839000,-500.0,9.924e-05,2]
[424785354,1781161839000,-1531.77123695,0.0001052,2]
[424785378,1781161839000,-20184.37238519,0.000109,2]
[424785385,1781161839000,-500.0,0.00010958,3]
[424785382,1781161839000,-2000.0,0.00010946,2]
[424785386,1781161839000,-570.68856785,0.00010958,4]
[424785384,1781161839000,-500.0,0.00010958,2]
[424785388,1781161839000,-500.0,0.00010958,2]
[424785383,1781161839000,-1531.77123695,0.00010949,2]
[424785389,1781161839000,-500.0,0.00010958,3]
[424785390,1781161839000,-500.0,0.00010958,4]
[424785391,1781161839000,-500.0,0.00010958,5]
[424785392,1781161839000,-500.0,0.00010958,6]
[424785380,1781161839000,-1531.77123695,0.00010916,2]
[424785394,1781161839000,-500.0,0.00010958,8]
[424785397,1781161839000,-500.0,0.00010958,2]
[424785401,1781161839000,-500.0,0.00010958,2]
[424785399,1781161839000,-500.0,0.00010958,2]
[424785400,1781161839000,-500.0,0.00010958,2]
[424785398,1781161839000,-500.0,0.00010958,2]
[424785402,1781161839000,-500.0,0.00010958,2]
[424785404,1781161839000,-500.0,0.00010958,2]
[424785403,1781161839000,-500.0,0.00010958,2]
[424785405,1781161839000,-500.0,0.00010958,2]
[424785406,1781161839000,-500.0,0.00010958,2]
[424785348,1781161839000,-79722.96482553,0.000103,2]
[424785396,1781161839000,-500.0,0.00010958,2]
[424785379,1781161839000,-543.19390237,0.00010906,2]
[424785393,1781161839000,-500.0,0.00010958,7]
[424785377,1781161839000,-20184.37238524,0.000109,2]
[424785381,1781161839000,-1531.77123695,0.00010933,2]
[424785352,1781161839000,-1531.77123695,0.00010478,2]
[424785353,1781161839000,-255.0,0.00010505,2]
[424785356,1781161839000,-1531.77123695,0.00010589,2]
[424785355,1781161839000,-1531.77123695,0.00010556,2]
[424785357,1781161839000,-1531.77123695,0.00010619,2]
[424785358,1781161839000,-1531.77123695,0.00010647,2]
[424785363,1781161839000,-500.0,0.00010746,2]
[424785364,1781161839000,-1531.77123695,0.00010766,2]
[424785359,1781161839000,-1531.77123695,0.00010673,2]
[424785360,1781161839000,-1531.77123695,0.00010698,2]
[424785365,1781161839000,-1531.77123695,0.00010787,2]
[424785362,1781161839000,-1531.77123695,0.00010744,2]
[424785349,1781161839000,-1531.77123695,0.00010366,2]
[424785374,1781161839000,-1531.77123695,0.00010882,2]
[424785366,1781161839000,-384.168256,0.00010788,2]
[424785369,1781161839000,-1531.77123695,0.00010827,2]
[424785368,1781161839000,-1531.77123695,0.00010807,2]
[424785367,1781161839000,-271.10496,0.00010788,2]
[424785370,1781161839000,-1531.77123695,0.00010846,2]
[424785376,1781161839000,-43500.0,0.000109,3]
[424785373,1781161839000,-175.037275,0.00010877,2]
[424785372,1781161839000,-555.197569,0.00010877,2]
[424785375,1781161839000,-1531.77123695,0.00010899,2]
[424785371,1781161839000,-1531.77123695,0.00010864,2]
[424785361,1781161839000,-1531.77123695,0.00010722,2]
[424785445,1781161840000,-166.66,0.00011178,2]
[424785443,1781161840000,-1531.77123695,0.00011159,2]
[424785444,1781161840000,-1531.77123695,0.00011172,2]
[424785442,1781161840000,-1531.77123695,0.00011147,2]
[424785438,1781161840000,-87135.38377846,0.00011099,2]
[424785440,1781161840000,-1531.77123695,0.00011121,2]
[424785441,1781161840000,-1531.77123695,0.00011134,2]
[424785437,1781161840000,-87135.38377846,0.00011099,2]
[424785439,1781161840000,-1531.77123695,0.00011108,2]
[424785448,1781161840000,-1531.77123695,0.00011208,2]
[424785446,1781161840000,-1531.77123695,0.00011184,2]
[424785449,1781161840000,-1531.77123695,0.0001122,2]
[424785454,1781161840000,-1531.77123695,0.00011265,2]
[424785450,1781161840000,-1531.77123695,0.00011231,2]
[424785452,1781161840000,-1531.77123695,0.00011243,2]
[424785458,1781161840000,-166.66,0.00011288,2]
[424785453,1781161840000,-1531.77123695,0.00011254,2]
[424785457,1781161840000,-1531.77123695,0.00011288,2]
[424785455,1781161840000,-171.7,0.00011274,2]
[424785456,1781161840000,-1531.77123695,0.00011276,2]
[424785408,1781161840000,-500.0,0.00010958,2]
[424785459,1781161840000,-500.0,0.00011294,2]
[424785460,1781161840000,-500.0,0.00011342,2]
[424785461,1781161840000,-87135.38377846,0.00011343,2]
[424785447,1781161840000,-1531.77123695,0.00011196,2]
[424785436,1781161840000,-87135.38377854,0.00011099,2]
[424785412,1781161840000,-186.7,0.00010959,2]
[424785434,1781161840000,-55803.12318259,0.00011099,2]
[424785409,1781161840000,-500.0,0.00010958,2]
[424785410,1781161840000,-166.66,0.00010959,2]
[424785411,1781161840000,-150.0,0.00010959,2]
[424785407,1781161840000,-500.0,0.00010958,2]
[424785413,1781161840000,-2123.92,0.00010959,2]
[424785415,1781161840000,-1531.77123695,0.00010965,2]
[424785416,1781161840000,-1531.77123695,0.0001098,2]
[424785414,1781161840000,-150.0,0.00010959,2]
[424785417,1781161840000,-1531.77123695,0.00010996,2]
[424785418,1781161840000,-1139.2058849,0.00011,2]
[424785419,1781161840000,-2083.20542946,0.00011,2]
[424785423,1781161840000,-1531.77123695,0.00011025,2]
[424785420,1781161840000,-20184.37238519,0.00011008,2]
[424785424,1781161840000,-1531.77123695,0.0001104,2]
[424785422,1781161840000,-500.0,0.0001102,2]
[424785421,1781161840000,-1531.77123695,0.0001101,2]
[424785425,1781161840000,-1531.77123695,0.00011054,2]
[424785426,1781161840000,-1531.77123695,0.00011068,2]
[424785427,1781161840000,-166.66,0.00011068,2]
[424785428,1781161840000,-1531.77123695,0.00011081,2]
[424785430,1781161840000,-500.0,0.00011098,2]
[424785432,1781161840000,-250.0,0.00011099,2]
[424785435,1781161840000,-55803.12318259,0.00011099,2]
[424785431,1781161840000,-500.0,0.00011098,2]
[424785429,1781161840000,-1531.77123695,0.00011095,2]
[424785433,1781161840000,-55803.12318266,0.00011099,2]
[424785463,1781161840000,-998.47,0.00011458,2]
[424785451,1781161840000,-155.04,0.00011233,2]
[424785465,1781161840000,-433.0,0.00011555,2]
[424785495,1781161840000,-276.0,0.00012877,2]
[424785497,1781161840000,-5688.93883939,0.00013,2]
[424785496,1781161840000,-171.7,0.00012885,2]
[424785500,1781161840000,-150.71381454,0.00013022,2]
[424785499,1781161840000,-150.71381454,0.00013022,2]
[424785501,1781161840000,-5426.07150161,0.0001305,2]
[424785498,1781161840000,-447.2388317,0.00013,5]
[424785502,1781161840000,-500.0,0.00013121,2]
[424785504,1781161840000,-2000.0,0.00013136,2]
[424785503,1781161840000,-87135.38377846,0.00013121,2]
[424785505,1781161840000,-500.0,0.00013183,11]
[424785506,1781161840000,-20184.37238519,0.00013343,2]
[424785508,1781161840000,-150.0,0.00013488,2]
[424785507,1781161840000,-4000.0,0.00013383,2]
[424785509,1781161840000,-150.0,0.00013488,2]
[424785514,1781161840000,-150.0,0.00013488,2]
[424785513,1781161840000,-150.0,0.00013488,2]
[424785511,1781161840000,-150.0,0.00013488,2]
[424785512,1781161840000,-150.0,0.00013488,2]
[424785516,1781161840000,-203.85144979,0.00013488,2]
[424785515,1781161840000,-150.0,0.00013488,2]
[424785517,1781161840000,-150.0,0.00013488,2]
[424785518,1781161840000,-254.58489995,0.00013488,2]
[424785519,1781161840000,-150.0,0.00013488,2]
[424785462,1781161840000,-166.66,0.00011397,2]
[424785494,1781161840000,-150.71381454,0.00012767,2]
[424785492,1781161840000,-159.47308989,0.00012767,2]
[424785468,1781161840000,-500.0,0.00011842,2]
[424785490,1781161840000,-736.0,0.00012711,2]
[424785493,1781161840000,-181.88651015,0.00012767,2]
[424785464,1781161840000,-166.66,0.00011507,2]
[424785467,1781161840000,-20184.37238519,0.00011786,2]
[424785469,1781161840000,-175.0,0.00011842,2]
[424785472,1781161840000,-250.31279834,0.0001198,2]
[424785473,1781161840000,-903.33759387,0.00012,2]
[424785470,1781161840000,-87135.38377846,0.00011936,2]
[424785471,1781161840000,-180.96172021,0.00011966,2]
[424785475,1781161840000,-2000.0,0.00012041,2]
[424785474,1781161840000,-500.0,0.00012039,9]
[424785476,1781161840000,-48317.9,0.00012055,2]
[424785478,1781161840000,-500.0,0.00012116,2]
[424785466,1781161840000,-500.0,0.00011568,2]
[424785477,1781161840000,-1536.33,0.00012094,2]
[424785489,1781161840000,-500.0,0.00012611,10]
[424785487,1781161840000,-87135.38377846,0.00012528,2]
[424785491,1781161840000,-998.47,0.00012731,2]
[424785479,1781161840000,-2968.95470525,0.00012176,2]
[424785485,1781161840000,-311.9669302,0.000125,2]
[424785488,1781161840000,-20184.37238519,0.00012565,2]
[424785484,1781161840000,-1472.57104462,0.0001245,2]
[424785483,1781161840000,-503.27053058,0.0001239,2]
[424785481,1781161840000,-35778.11752601,0.000123,2]
[424785482,1781161840000,-165.78,0.00012329,2]
[424785480,1781161840000,-500.0,0.00012299,2]
[424785486,1781161840000,-307.5643183,0.000125,2]
[424785567,1781161841000,-150.0,0.00013686,2]
[424785570,1781161841000,-492.8427843,0.00013698,2]
[424785569,1781161841000,-574.57860626,0.00013698,2]
[424785568,1781161841000,-500.0,0.00013697,12]
[424785561,1781161841000,-150.0,0.00013657,2]
[424785566,1781161841000,-254.58489995,0.00013684,2]
[424785564,1781161841000,-150.0,0.00013666,2]
[424785563,1781161841000,-150.0,0.00013666,2]
[424785562,1781161841000,-150.0,0.00013659,2]
[424785571,1781161841000,-539.51,0.00013698,2]
[424785565,1781161841000,-254.58489995,0.00013669,2]
[424785572,1781161841000,-539.51,0.00013698,2]
[424785580,1781161841000,-2171.56,0.00013698,2]
[424785575,1781161841000,-539.51,0.00013698,2]
[424785578,1781161841000,-539.51,0.00013698,2]
[424785577,1781161841000,-539.51,0.00013698,2]
[424785576,1781161841000,-539.51,0.00013698,2]
[424785579,1781161841000,-539.51,0.00013698,2]
[424785582,1781161841000,-2171.56,0.00013698,2]
[424785581,1781161841000,-2171.56,0.00013698,2]
[424785585,1781161841000,-2171.56,0.00013698,2]
[424785584,1781161841000,-2171.56,0.00013698,2]
[424785583,1781161841000,-2171.56,0.00013698,2]
[424785560,1781161841000,-254.58489995,0.00013654,2]
[424785573,1781161841000,-539.51,0.00013698,2]
[424785559,1781161841000,-254.58489995,0.00013639,2]
[424785534,1781161841000,-150.0,0.00013559,2]
[424785558,1781161841000,-150.0,0.0001363,2]
[424785520,1781161841000,-1000.0,0.000135,2]
[424785521,1781161841000,-254.58489995,0.00013503,2]
[424785524,1781161841000,-150.0,0.00013523,2]
[424785522,1781161841000,-150.0,0.00013516,2]
[424785523,1781161841000,-254.58489995,0.00013518,2]
[424785526,1781161841000,-150.0,0.0001353,2]
[424785525,1781161841000,-150.0,0.00013523,2]
[424785527,1781161841000,-254.58489995,0.00013533,2]
[424785528,1781161841000,-150.0,0.00013544,2]
[424785543,1781161841000,-254.58489995,0.00013594,2]
[424785532,1781161841000,-150.0,0.00013559,2]
[424785530,1781161841000,-254.58489995,0.00013548,2]
[424785541,1781161841000,-254.58489995,0.00013578,2]
[424785586,1781161841000,-2171.56,0.00013698,2]
[424785538,1781161841000,-150.0,0.00013572,2]
[424785536,1781161841000,-254.58489995,0.00013563,2]
[424785540,1781161841000,-150.0,0.00013573,2]
[424785548,1781161841000,-150.0,0.00013595,2]
[424785550,1781161841000,-150.0,0.00013601,2]
[424785546,1781161841000,-150.0,0.00013595,2]
[424785552,1781161841000,-254.58489995,0.00013609,2]
[424785553,1781161841000,-150.0,0.00013616,2]
[424785557,1781161841000,-150.0,0.0001363,2]
[424785556,1781161841000,-150.0,0.00013629,2]
[424785555,1781161841000,-254.58489995,0.00013624,2]
[424785554,1781161841000,-150.0,0.00013624,2]
[424785589,1781161841000,-2171.56,0.00013698,2]
[424785574,1781161841000,-539.51,0.00013698,2]
[424785587,1781161841000,-2171.56,0.00013698,2]
[424785620,1781161841000,-660.37,0.00013698,2]
[424785618,1781161841000,-660.37,0.00013698,2]
[424785623,1781161841000,-500.0,0.00013698,2]
[424785621,1781161841000,-660.37,0.00013698,2]
[424785624,1781161841000,-500.0,0.00013698,2]
[424785628,1781161841000,-500.0,0.00013698,2]
[424785622,1781161841000,-660.37,0.00013698,2]
[424785625,1781161841000,-500.0,0.00013698,2]
[424785627,1781161841000,-500.0,0.00013698,2]
[424785626,1781161841000,-500.0,0.00013698,2]
[424785629,1781161841000,-500.0,0.00013698,2]
[424785631,1781161841000,-500.0,0.00013698,2]
[424785630,1781161841000,-500.0,0.00013698,2]
[424785632,1781161841000,-500.0,0.00013698,2]
[424785633,1781161841000,-500.0,0.00013698,2]
[424785636,1781161841000,-500.0,0.00013698,2]
[424785635,1781161841000,-500.0,0.00013698,2]
[424785638,1781161841000,-500.0,0.00013698,2]
[424785637,1781161841000,-500.0,0.00013698,2]
[424785634,1781161841000,-500.0,0.00013698,2]
[424785639,1781161841000,-500.0,0.00013698,2]
[424785640,1781161841000,-500.0,0.00013698,2]
[424785642,1781161841000,-500.0,0.00013698,2]
[424785643,1781161841000,-500.0,0.00013698,2]
[424785588,1781161841000,-2171.56,0.00013698,2]
[424785617,1781161841000,-660.37,0.00013698,2]
[424785619,1781161841000,-660.37,0.00013698,2]
[424785641,1781161841000,-500.0,0.00013698,2]
[424785614,1781161841000,-660.37,0.00013698,2]
[424785613,1781161841000,-660.37,0.00013698,2]
[424785591,1781161841000,-500.0,0.00013698,2]
[424785592,1781161841000,-500.0,0.00013698,2]
[424785596,1781161841000,-504.05769263,0.00013698,2]
[424785593,1781161841000,-500.0,0.00013698,2]
[424785595,1781161841000,-500.0,0.00013698,2]
[424785594,1781161841000,-500.0,0.00013698,2]
[424785597,1781161841000,-500.0,0.00013698,2]
[424785598,1781161841000,-500.0,0.00013698,2]
[424785599,1781161841000,-500.0,0.00013698,2]
[424785601,1781161841000,-909.22,0.00013698,2]
[424785600,1781161841000,-527.02640831,0.00013698,2]
[424785590,1781161841000,-2171.56,0.00013698,2]
[424785609,1781161841000,-909.22,0.00013698,2]
[424785603,1781161841000,-909.22,0.00013698,2]
[424785604,1781161841000,-909.22,0.00013698,2]
[424785605,1781161841000,-909.22,0.00013698,2]
[424785606,1781161841000,-909.22,0.00013698,2]
[424785608,1781161841000,-909.22,0.00013698,2]
[424785607,1781161841000,-909.22,0.00013698,2]
[424785610,1781161841000,-909.22,0.00013698,2]
[424785602,1781161841000,-909.22,0.00013698,2]
[424785611,1781161841000,-909.22,0.00013698,2]